Workbook

Sheet Несие есептегіші
B2: КОЛЛЕДЖ НЕСИЕСІ | G2: ₸50,000 | L2: 2011-05-10
B3: ЕСЕПТЕГІШ
B5: Оқуға арналған несиені жалпы айлық қайтару сомасы бірінші жылдағы жылдық жалақының 8%-ынан аспауы тиіс.
C7: Ағымдағы жалпы айлық төлем: | F7: =КолледжНесиелері[[#Totals],[Ағымдағы айлық төлем]] -> ₸328.59 | I7: Жалпы жоспарланған айлық төлем: | M7: =КолледжНесиелері[[#Totals],[Жоспарланған төлем]] -> ₸328.59
C8: Айлық табыс пайызы: | F8: =КолледжНесиелері[[#Totals],[Ағымдағы айлық төлем]]/БолжалдыАйлықЖалақы -> 7.89% | I8: Айлық табыс пайызы: | M8: =КолледжНесиелері[[#Totals],[Жоспарланған төлем]]/БолжалдыАйлықЖалақы -> 7.89%
C11: НЕСИЕНІҢ ЖАЛПЫ МӘЛІМЕТТЕРІ | G11: НЕСИЕНІ ҚАЙТАРУ ДЕРЕКТЕРІ | J11: ТӨЛЕМ МӘЛІМЕТТЕРІ
C12: Несие нөмірі | D12: Несие беруші | E12: Несие сомасы | F12: Жылдық пайыздық мөлшерлеме | G12: Басталу күні | H12: Ұзақтық (жыл) | I12: Аяқталу күні | J12: Ағымдағы айлық төлем | K12: Жалпы пайыз | L12: Жоспарланған төлем | M12: Жылдық төлем
C13: 10998M88 | D13: 1-несие беруші | E13: ₸10,000.00 | F13: 5.00% | G13: 2011-04-01 | H13: 10 | I13: =IF(AND(КолледжНесиелері[[#This Row],[Басталу күні]]>0,КолледжНесиелері[[#This Row],[Ұзақтық (жыл)]]>0),EDATE(КолледжНесиелері[[#This Row],[Басталу күні]],КолледжНесиелері[[#This Row],[Ұзақтық (жыл)]]*12),"") -> 2021-04-01 | J13: =IF(AND(НесиеБастауБүгін,COUNT(КолледжНесиелері[[#This Row],[Несие сомасы]]:КолледжНесиелері[[#This Row],[Ұзақтық (жыл)]])=4,КолледжНесиелері[[#This Row],[Басталу күні]]<TODAY()),PMT(КолледжНесиелері[[#This Row],[Жылдық пайыздық мөлшерлеме]]/12,КолледжНесиелері[[#This Row],[Ұзақтық (жыл)]]*12,-КолледжНесиелері[[#This Row],[Несие сомасы]],0,0),"") -> ₸106.07 | K13: =IFERROR((КолледжНесиелері[[#This Row],[Жоспарланған төлем]]*(КолледжНесиелері[[#This Row],[Ұзақтық (жыл)]]*12))-КолледжНесиелері[[#This Row],[Несие сомасы]],"") -> ₸2,727.86 | L13: =IF(COUNTA(КолледжНесиелері[[#This Row],[Несие сомасы]]:КолледжНесиелері[[#This Row],[Ұзақтық (жыл)]])<>4,"",PMT(КолледжНесиелері[[#This Row],[Жылдық пайыздық мөлшерлеме]]/12,КолледжНесиелері[[#This Row],[Ұзақтық (жыл)]]*12,-КолледжНесиелері[[#This Row],[Несие сомасы]],0,0)) -> ₸106.07 | M13: =IFERROR(КолледжНесиелері[[#This Row],[Жоспарланған төлем]]*12,"") -> ₸1,272.79
C14: 20987N87 | D14: 2-несие беруші | E14: ₸8,000.00 | F14: 5.00% | G14: 2011-05-01 | H14: 10 | I14: =IF(AND(КолледжНесиелері[[#This Row],[Басталу күні]]>0,КолледжНесиелері[[#This Row],[Ұзақтық (жыл)]]>0),EDATE(КолледжНесиелері[[#This Row],[Басталу күні]],КолледжНесиелері[[#This Row],[Ұзақтық (жыл)]]*12),"") -> 2021-05-01 | J14: =IF(AND(НесиеБастауБүгін,COUNT(КолледжНесиелері[[#This Row],[Несие сомасы]]:КолледжНесиелері[[#This Row],[Ұзақтық (жыл)]])=4,КолледжНесиелері[[#This Row],[Басталу күні]]<TODAY()),PMT(КолледжНесиелері[[#This Row],[Жылдық пайыздық мөлшерлеме]]/12,КолледжНесиелері[[#This Row],[Ұзақтық (жыл)]]*12,-КолледжНесиелері[[#This Row],[Несие сомасы]],0,0),"") -> ₸84.85 | K14: =IFERROR((КолледжНесиелері[[#This Row],[Жоспарланған төлем]]*(КолледжНесиелері[[#This Row],[Ұзақтық (жыл)]]*12))-КолледжНесиелері[[#This Row],[Несие сомасы]],"") -> ₸2,182.29 | L14: =IF(COUNTA(КолледжНесиелері[[#This Row],[Несие сомасы]]:КолледжНесиелері[[#This Row],[Ұзақтық (жыл)]])<>4,"",PMT(КолледжНесиелері[[#This Row],[Жылдық пайыздық мөлшерлеме]]/12,КолледжНесиелері[[#This Row],[Ұзақтық (жыл)]]*12,-КолледжНесиелері[[#This Row],[Несие сомасы]],0,0)) -> ₸84.85 | M14: =IFERROR(КолледжНесиелері[[#This Row],[Жоспарланған төлем]]*12,"") -> ₸1,018.23
C15: 36785LM | D15: 3-несие беруші | E15: ₸6,000.00 | F15: 4.50% | G15: 2012-03-01 | H15: 10 | I15: =IF(AND(КолледжНесиелері[[#This Row],[Басталу күні]]>0,КолледжНесиелері[[#This Row],[Ұзақтық (жыл)]]>0),EDATE(КолледжНесиелері[[#This Row],[Басталу күні]],КолледжНесиелері[[#This Row],[Ұзақтық (жыл)]]*12),"") -> 2022-03-01 | J15: =IF(AND(НесиеБастауБүгін,COUNT(КолледжНесиелері[[#This Row],[Несие сомасы]]:КолледжНесиелері[[#This Row],[Ұзақтық (жыл)]])=4,КолледжНесиелері[[#This Row],[Басталу күні]]<TODAY()),PMT(КолледжНесиелері[[#This Row],[Жылдық пайыздық мөлшерлеме]]/12,КолледжНесиелері[[#This Row],[Ұзақтық (жыл)]]*12,-КолледжНесиелері[[#This Row],[Несие сомасы]],0,0),"") -> ₸62.18 | K15: =IFERROR((КолледжНесиелері[[#This Row],[Жоспарланған төлем]]*(КолледжНесиелері[[#This Row],[Ұзақтық (жыл)]]*12))-КолледжНесиелері[[#This Row],[Несие сомасы]],"") -> ₸1,461.97 | L15: =IF(COUNTA(КолледжНесиелері[[#This Row],[Несие сомасы]]:КолледжНесиелері[[#This Row],[Ұзақтық (жыл)]])<>4,"",PMT(КолледжНесиелері[[#This Row],[Жылдық пайыздық мөлшерлеме]]/12,КолледжНесиелері[[#This Row],[Ұзақтық (жыл)]]*12,-КолледжНесиелері[[#This Row],[Несие сомасы]],0,0)) -> ₸62.18 | M15: =IFERROR(КолледжНесиелері[[#This Row],[Жоспарланған төлем]]*12,"") -> ₸746.20
C16: 765R43 | D16: 4-несие беруші | E16: ₸4,000.00 | F16: 5.00% | G16: 2012-05-01 | H16: 5 | I16: =IF(AND(КолледжНесиелері[[#This Row],[Басталу күні]]>0,КолледжНесиелері[[#This Row],[Ұзақтық (жыл)]]>0),EDATE(КолледжНесиелері[[#This Row],[Басталу күні]],КолледжНесиелері[[#This Row],[Ұзақтық (жыл)]]*12),"") -> 2017-05-01 | J16: =IF(AND(НесиеБастауБүгін,COUNT(КолледжНесиелері[[#This Row],[Несие сомасы]]:КолледжНесиелері[[#This Row],[Ұзақтық (жыл)]])=4,КолледжНесиелері[[#This Row],[Басталу күні]]<TODAY()),PMT(КолледжНесиелері[[#This Row],[Жылдық пайыздық мөлшерлеме]]/12,КолледжНесиелері[[#This Row],[Ұзақтық (жыл)]]*12,-КолледжНесиелері[[#This Row],[Несие сомасы]],0,0),"") -> ₸75.48 | K16: =IFERROR((КолледжНесиелері[[#This Row],[Жоспарланған төлем]]*(КолледжНесиелері[[#This Row],[Ұзақтық (жыл)]]*12))-КолледжНесиелері[[#This Row],[Несие сомасы]],"") -> ₸529.10 | L16: =IF(COUNTA(КолледжНесиелері[[#This Row],[Несие сомасы]]:КолледжНесиелері[[#This Row],[Ұзақтық (жыл)]])<>4,"",PMT(КолледжНесиелері[[#This Row],[Жылдық пайыздық мөлшерлеме]]/12,КолледжНесиелері[[#This Row],[Ұзақтық (жыл)]]*12,-КолледжНесиелері[[#This Row],[Несие сомасы]],0,0)) -> ₸75.48 | M16: =IFERROR(КолледжНесиелері[[#This Row],[Жоспарланған төлем]]*12,"") -> ₸905.82
C17: Барлығы | E17: =SUBTOTAL(109,КолледжНесиелері[Несие сомасы]) -> ₸28,000.00 | J17: =SUBTOTAL(109,КолледжНесиелері[Ағымдағы айлық төлем]) -> ₸328.59 | K17: =SUBTOTAL(109,КолледжНесиелері[Жалпы пайыз]) -> ₸6,901.21 | L17: =SUBTOTAL(109,КолледжНесиелері[Жоспарланған төлем]) -> ₸328.59 | M17: =SUBTOTAL(109,КолледжНесиелері[Жылдық төлем]) -> ₸3,943.03
C18: Орташа | E18: =AVERAGE(КолледжНесиелері[Несие сомасы]) -> ₸7,000.00 | F18: =AVERAGE(КолледжНесиелері[Жылдық пайыздық мөлшерлеме]) -> 4.88% | K18: =AVERAGE(КолледжНесиелері[Жалпы пайыз]) -> ₸1,725.30 | M18: =AVERAGE(КолледжНесиелері[Жылдық төлем]) -> ₸985.76
K20: Жалпы жиынтық несиені қайтару: | M20: =КолледжНесиелері[[#Totals],[Несие сомасы]]+КолледжНесиелері[[#Totals],[Жалпы пайыз]] -> ₸34,901.21
K22: Оқу орнын бітіргеннен кейінгі жоспарланған айлық табыс: | M22: =(БолжалдыЖылдықЖалақы/12) -> ₸4,166.67
